[Event "WYCC 2018 G16"]
[Site "Halkidiki"]
[Date "2018.10.21"]
[Round "2"]
[White "Hovhannisyan, Mane"]
[Black "Salonika, Saina"]
[Result "0-1"]
[ECO "E92"]
[WhiteElo "1730"]
[BlackElo "2093"]
[Annotator "NA"]
[PlyCount "90"]
[EventDate "2018.10.20"]
[EventType "swiss"]
[EventCountry "GRE"]
[SourceTitle "playchess.com"]
[Source "ChessBase"]
[SourceQuality "1"]
[TimeControl "40/5400+30:1800+30"]

1. d4 {[%emt 0:00:00]} Nf6 {[%emt 0:00:00]} 2. Nf3 {[%emt 0:00:00]} g6 {[%emt 0:00:00]} 3. c4 {[%emt 0:00:00]} Bg7 {[%emt 0:00:00]} 4. Nc3 {[%emt 0:00:00]} O-O {[%emt 0:00:00]} 5. e4 {[%emt 0:00:00]} d6 {[%emt 0:00:00]} 6. Be2 {[%emt 0:00:00]} e5 {[%emt 0:00:04] LiveBook: 30202 Games} 7. Be3 {[%emt 0:00:44]} Nc6 {[%emt 0:04:35]} 8. O-O {[%emt 0:00:49]} Bg4 {[%emt 0:08:13]} 9. dxe5 {[%emt 0:03:23]} dxe5 {[%emt 0:03:10]} 10. c5 $11 {[%emt 0:06:05]} Qc8 {[%emt 0:07:11]} 11. a3 {[%emt 0:04:52]} Rd8 {[%emt 0:01:13]} 12. Qb3 {[%emt 0:22:30]} Nd4 {[%emt 0:15:08]} 13. Bxd4 {[%emt 0:01:50]} exd4 {[%emt 0:00:07]} 14. Nd5 {[%emt 0:00:55]} Nxd5 {[%emt 0:05:46]} 15. exd5 {[%emt 0:00:09]} Qd7 {[%emt 0:00:32]} 16. Bc4 {[%emt 0:00:48]} Qe7 {[%emt 0:04:40]} 17. Rac1 {[%emt 0:06:07]} Bxf3 {[%emt 0:03:08]} 18. Qxf3 {[%emt 0:01:02]} Qxc5 {[%emt 0:00:07]} 19. d6 {[%emt 0:00:27]} Qxd6 {[%emt 0:00:18]} 20. Bxf7+ {[%emt 0:01:02]} Kh8 {[%emt 0:00:04]} 21. Qxb7 {[%emt 0:00:28]} c5 {[%emt 0:02:24]} 22. Qb5 {[%emt 0:02:17]} Rab8 {[%emt 0:02:46]} 23. Qxc5 {[%emt 0:06:30]} Qxc5 {[%emt 0:00:07]} 24. Rxc5 {[%emt 0:00:01]} Rxb2 {[%emt 0:00:13]} 25. Rd1 {[%emt 0:01:13]} d3 {[%emt 0:02:47]} 26. Rd5 {[%emt 0:01:24]} Rxd5 {[%emt 0:01:30]} 27. Bxd5 {[%emt 0:00:01]} Bd4 {[%emt 0:05:59]} 28. Kf1 {[%emt 0:05:10]} Rxf2+ {[%emt 0:00:45]} 29. Ke1 {[%emt 0:00:04]} Rf5 {[%emt 0:00:04]} 30. Bf3 {[%emt 0:01:43]} Bc3+ {[%emt 0:00:07]} 31. Kf2 {[%emt 0:00:03]} d2 {[%emt 0:00:15]} 32. Ke3 {[%emt 0:00:56]} Ra5 {[%emt 0:00:38]} 33. Kd3 {[%emt 0:00:54]} Rxa3 {[%emt 0:00:09]} 34. Kc2 {[%emt 0:00:03]} Bb4 {[%emt 0:01:26]} 35. h3 {[%emt 0:00:24]} a5 {[%emt 0:00:42]} 36. Bd5 {[%emt 0:00:41]} Re3 {[%emt 0:00:47]} 37. Bf3 {[%emt 0:03:00]} Kg7 {[%emt 0:00:09]} 38. Rb1 {[%emt 0:01:51]} Re1 {[%emt 0:02:33]} 39. Rd1 {[%emt 0:01:11]} Kf6 {[%emt 0:00:09]} 40. Kd3 {[%emt 0:00:00]} Ke5 {[%emt 0:00:00]} 41. g3 {[%emt 0:01:29]} Kd6 {[%emt 0:00:47]} 42. h4 {[%emt 0:01:45]} Kc5 {[%emt 0:00:15]} 43. g4 {[%emt 0:00:05]} a4 {[%emt 0:00:40]} 44. Kc2 {[%emt 0:00:18]} a3 {[%emt 0:00:26]} 45. Kb3 {[%emt 0:00:06]} Re3+ {[%emt 0:00:06]} 0-1

[Event "WYCC 2018 G16"]
[Site "Halkidiki"]
[Date "2018.10.21"]
[Round "2"]
[White "Hewawasam, H Y Nevanjee Dimany"]
[Black "Kobald, Jacqueline"]
[Result "1-0"]
[ECO "B48"]
[WhiteElo "1686"]
[BlackElo "1911"]
[Annotator "NA"]
[PlyCount "47"]
[EventDate "2018.10.20"]
[EventType "swiss"]
[EventCountry "GRE"]
[SourceTitle "playchess.com"]
[Source "ChessBase"]
[SourceQuality "1"]
[TimeControl "40/5400+30:1800+30"]

1. e4 {[%emt 0:00:00]} c5 {[%emt 0:00:00]} 2. Nf3 {[%emt 0:00:00]} e6 {[%emt 0:00:00]} 3. d4 {[%emt 0:00:00]} cxd4 {[%emt 0:00:00]} 4. Nxd4 {[%emt 0:00:00]} Nc6 {[%emt 0:00:00]} 5. Nc3 {[%emt 0:00:00]} Qc7 {[%emt 0:00:00] LiveBook: 18115 Games} 6. Be3 {[%emt 0:00:06]} a6 {[%emt 0:00:01]} 7. Qf3 {[%emt 0:00:17]} Ne5 {[%emt 0:01:23]} 8. Qg3 {[%emt 0:00:48]} h5 {[%emt 0:01:13]} 9. h3 {[%emt 0:06:16]} h4 {[%emt 0:03:34]} 10. Qh2 {[%emt 0:00:35]} d6 {[%emt 0:16:33]} 11. O-O-O {[%emt 0:05:08]} b5 {[%emt 0:02:01]} 12. a3 {[%emt 0:03:19]} Rb8 $11 {[%emt 0:09:23]} 13. f4 {[%emt 0:28:12]} Nc4 {[%emt 0:02:51]} 14. Bxc4 {[%emt 0:09:58]} bxc4 {[%emt 0:02:14]} 15. Kb1 {[%emt 0:04:37]} Rh5 {[%emt 0:20:02]} 16. f5 {[%emt 0:11:43]} Qb7 {[%emt 0:07:55]} 17. Bc1 {[%emt 0:00:44]} Be7 {[%emt 0:14:04]} 18. Rhe1 {[%emt 0:03:23]} Bg5 {[%emt 0:01:24]} 19. Qxd6 {[%emt 0:02:03]} Ne7 {[%emt 0:06:09]} 20. Ndb5 {[%emt 0:03:20]} Bd7 {[%emt 0:06:50]} 21. Nc7+ {[%emt 0:01:54]} Kf8 {[%emt 0:00:01]} 22. Qxd7 {[%emt 0:00:19]} Kg8 {[%emt 0:00:24]} 23. Na4 {[%emt 0:04:51]} Nd5 {[%emt 0:00:59]} 24. Nxd5 {[%emt 0:02:48]} 1-0

[Event "WYCC 2018 G16"]
[Site "Halkidiki"]
[Date "2018.10.21"]
[Round "2"]
[White "Simkunaite, Gabija"]
[Black "Sosa Suarez, Carla Cristina"]
[Result "1/2-1/2"]
[ECO "C45"]
[WhiteElo "1650"]
[BlackElo "2025"]
[Annotator "NA"]
[PlyCount "60"]
[EventDate "2018.10.20"]
[EventType "swiss"]
[EventCountry "GRE"]
[SourceTitle "playchess.com"]
[Source "ChessBase"]
[SourceQuality "1"]
[TimeControl "40/5400+30:1800+30"]

1. e4 {[%emt 0:00:00]} e5 {[%emt 0:00:00]} 2. Nf3 {[%emt 0:00:00]} Nc6 {[%emt 0:00:00]} 3. d4 {[%emt 0:00:18]} exd4 {[%emt 0:00:00]} 4. Nxd4 {[%emt 0:00:09]} Nf6 {[%emt 0:00:00]} 5. Nxc6 {[%emt 0:01:15]} bxc6 {[%emt 0:00:00]} 6. e5 {[%emt 0:00:49]} Qe7 {[%emt 0:00:17]} 7. Qe2 {[%emt 0:00:10]} Nd5 {[%emt 0:00:26]} 8. c4 {[%emt 0:00:52]} Ba6 {[%emt 0:00:03]} 9. b3 {[%emt 0:00:16]} g6 {[%emt 0:04:16]} 10. f4 {[%emt 0:06:05]} Bg7 {[%emt 0:04:59] LiveBook: 63 Games} (10... d6 $11) 11. Qe4 {[%emt 0:03:59]} Nb6 {[%emt 0:19:01]} (11... f5 $17 12. Qd4 Nb4) 12. Nd2 {[%emt 0:04:43]} O-O {[%emt 0:03:16]} 13. Be2 {[%emt 0:10:14]} f6 {[%emt 0:03:38]} 14. Bb2 {[%emt 0:05:24]} fxe5 {[%emt 0:03:24]} 15. fxe5 {[%emt 0:03:31]} d5 {[%emt 0:04:21]} 16. Qe3 {[%emt 0:02:39]} dxc4 {[%emt 0:02:15]} 17. bxc4 {[%emt 0:00:34]} Rae8 {[%emt 0:08:40]} 18. Nf3 {[%emt 0:07:13]} Nd7 $17 {[%emt 0:04:20]} ({Not} 18... Bxc4 19. O-O $15) (18... Nxc4 $19 19. Qb3 {[#]} Rxf3 $1 {[%mdl 512]} 20. Bxc4+ Kh8 21. Qxf3 (21. gxf3 $2 {too greedy.} Qh4+ 22. Kd2 Bxc4 $19) 21... Qh4+ 22. Kd1 Rd8+ 23. Kc2 Qxc4+ 24. Bc3 Rd3 25. Qxd3 Qxd3+ 26. Kb3 Bc4+ 27. Kb2 Qe2+ 28. Ka3 Bf8+ 29. Bb4 Qd3+ 30. Kb2 Bxb4 31. Rad1 Ba3+ 32. Ka1 Qc3+ 33. Kb1 Qb2#) 19. O-O {[%emt 0:02:13]} Nxe5 {[%emt 0:03:41]} 20. Nxe5 {[%emt 0:01:29]} Rxf1+ {[%emt 0:00:46]} 21. Rxf1 {[%emt 0:00:17]} Bxe5 {[%emt 0:00:09]} 22. Bxe5 {[%emt 0:00:18]} Qxe5 {[%emt 0:00:07]} 23. Qxa7 {[%emt 0:01:07]} Qe3+ {[%emt 0:01:58]} 24. Qxe3 {[%emt 0:00:10]} Rxe3 {[%emt 0:00:02]} 25. Bf3 {[%emt 0:00:58]} Bxc4 {[%emt 0:04:04]} 26. Rc1 {[%emt 0:00:13]} Bxa2 {[%emt 0:00:53]} 27. Rxc6 {[%emt 0:00:40]} Re7 {[%emt 0:00:56]} 28. Kf2 {[%emt 0:00:54]} Kf7 {[%emt 0:02:18]} 29. Kg3 {[%emt 0:00:36]} Be6 {[%emt 0:01:25]} 30. Kh4 {[%emt 0:01:45]} Kg7 {[%emt 0:05:14]} 1/2-1/2

[Event "WYCC 2018 G16"]
[Site "Halkidiki"]
[Date "2018.10.21"]
[Round "2"]
[White "Ortega Beltran, Ximena"]
[Black "Aubert, Estee"]
[Result "1-0"]
[ECO "A25"]
[WhiteElo "1628"]
[BlackElo "2064"]
[Annotator "NA"]
[PlyCount "55"]
[EventDate "2018.10.20"]
[EventType "swiss"]
[EventCountry "GRE"]
[SourceTitle "playchess.com"]
[Source "ChessBase"]
[SourceQuality "1"]
[TimeControl "40/5400+30:1800+30"]

1. c4 {[%emt 0:00:00]} e5 {[%emt 0:00:00]} 2. g3 {[%emt 0:00:00]} Nc6 {[%emt 0:00:00]} 3. Bg2 {[%emt 0:00:00]} g6 {[%emt 0:00:02]} 4. Nc3 {[%emt 0:00:22]} Bg7 {[%emt 0:00:08]} 5. Nf3 {[%emt 0:00:22]} d6 {[%emt 0:00:11]} 6. Rb1 {[%emt 0:00:37]} Be6 {[%emt 0:05:18]} 7. d3 {[%emt 0:01:27]} Nf6 {[%emt 0:00:37]} 8. O-O {[%emt 0:01:48]} O-O {[%emt 0:01:03]} 9. b4 {[%emt 0:01:09] A26: English Opening vs King's Indian with ...Nc6 and d3} Qc8 {[%emt 0:00:24]} (9... h6 10. b5 Ne7 11. a4 Qd7 12. Ba3 Rfe8 13. Nd2 Rab8 14. a5 b6 15. Nde4 Nh7 16. axb6 axb6 17. Bb2 f5 18. Nd2 Nf6 19. Ra1 d5 20. cxd5 Nexd5 21. Nxd5 Bxd5 22. Bxd5+ Qxd5 {1-0 (74) Nepomniachtchi,I (2705)-Nakamura,H (2816) Baku 2015}) 10. b5 {[%emt 0:03:31]} Nd8 {[%emt 0:00:05]} 11. Re1 {[%emt 0:00:17]} h6 $146 {[%emt 0:01:18]} ({Predecessor:} 11... c6 12. bxc6 Nxc6 13. Qb3 Rb8 14. Nd5 b5 15. Bg5 Bxd5 16. cxd5 Ne7 {½-½ (27) Miklas,M (2122)-Balazs,A (2046) Slovakia 2015}) 12. a4 {[%emt 0:03:13]} Bh3 {[%emt 0:01:20]} 13. Bh1 {[%emt 0:00:14]} Ng4 {[%emt 0:01:01]} 14. d4 {[%emt 0:10:03]} Ne6 {[%emt 0:17:47]} 15. dxe5 {[%emt 0:04:31]} dxe5 {[%emt 0:00:24]} 16. Nd5 {[%emt 0:00:46]} Kh7 {[%emt 0:04:41]} 17. Bb2 {[%emt 0:04:43]} f5 {[%emt 0:09:08]} 18. Qc2 {[%emt 0:05:37]} Qe8 {[%emt 0:03:58]} (18... c6 $15 19. Ne3 Nxe3 20. fxe3 Qc7) 19. e3 {[%emt 0:02:07]} Qf7 {[%emt 0:01:33]} 20. Nh4 {[%emt 0:14:39]} g5 {[%emt 0:22:17]} 21. Nxf5 {[%emt 0:00:47]} Nxf2 $18 {[%emt 0:03:55]} (21... Qxf5 $142 22. Be4 Nxf2 23. Bxf5+ Bxf5) 22. Nxg7+ {[%emt 0:02:09]} Kg8 {[%emt 0:14:50]} 23. Nxe6 {[%emt 0:03:39]} Bxe6 {[%emt 0:01:13]} 24. Ne7+ {[%emt 0:01:00]} Qxe7 {[%emt 0:02:13]} 25. Qg6+ {[%emt 0:00:31]} Qg7 {[%emt 0:00:41]} 26. Qxe6+ {[%emt 0:00:07]} Qf7 {[%emt 0:02:00]} 27. Qxf7+ Rxf7 {[%emt 0:00:25]} 28. Bd5 {[%emt 0:00:46]} 1-0

[Event "WYCC 2018 G16"]
[Site "Halkidiki"]
[Date "2018.10.21"]
[Round "2"]
[White "Cohen, Yael"]
[Black "Gombocz, Zsofia"]
[Result "0-1"]
[ECO "C29"]
[WhiteElo "1602"]
[BlackElo "2038"]
[Annotator "NA"]
[PlyCount "62"]
[EventDate "2018.10.20"]
[EventType "swiss"]
[EventCountry "GRE"]
[SourceTitle "playchess.com"]
[Source "ChessBase"]
[SourceQuality "1"]
[TimeControl "40/5400+30:1800+30"]

1. e4 {[%emt 0:00:00]} e5 {[%emt 0:00:00]} 2. Nc3 {[%emt 0:01:01]} Nf6 {[%emt 0:00:00]} 3. f4 {[%emt 0:00:25]} d5 {[%emt 0:00:42]} 4. fxe5 {[%emt 0:00:26]} Nxe4 {[%emt 0:00:39]} 5. Nf3 {[%emt 0:00:29]} Bg4 {[%emt 0:03:51]} 6. Qe2 {[%emt 0:00:56]} Nc5 {[%emt 0:06:42]} 7. d4 {[%emt 0:03:25]} Bxf3 {[%emt 0:00:30]} 8. Qxf3 {[%emt 0:01:46]} Qh4+ {[%emt 0:00:10]} 9. Qf2 {[%emt 0:03:16]} Qxf2+ {[%emt 0:01:11]} 10. Kxf2 {[%emt 0:00:10]} Ne6 {[%emt 0:01:14]} 11. Be3 {[%emt 0:07:40]} c6 {[%emt 0:03:36]} 12. Bd3 {[%emt 0:03:32]} g6 {[%emt 0:04:19]} 13. Raf1 {[%emt 0:06:01]} Bg7 {[%emt 0:02:59]} 14. Ke2 {[%emt 0:03:07]} Nd7 {[%emt 0:01:16]} 15. Nd1 {[%emt 0:12:46]} f6 {[%emt 0:05:51]} 16. exf6 {[%emt 0:02:06]} Nxf6 {[%emt 0:00:13]} 17. c3 {[%emt 0:02:06]} O-O {[%emt 0:03:00]} 18. Nf2 $11 {[%emt 0:03:38]} Kh8 {[%emt 0:11:05]} 19. h4 {[%emt 0:04:27]} Nh5 {[%emt 0:01:30]} 20. g4 {[%emt 0:07:44]} Ng3+ {[%emt 0:00:38]} 21. Kd2 {[%emt 0:00:18]} Nxf1+ {[%emt 0:00:40]} 22. Rxf1 {[%emt 0:00:17]} Nf4 {[%emt 0:01:14]} 23. Bc2 {[%emt 0:01:25]} Ng2 {[%emt 0:01:52]} 24. Bg5 {[%emt 0:01:20]} h6 {[%emt 0:03:42]} 25. Be7 {[%emt 0:11:30]} Rf7 {[%emt 0:00:59]} 26. Bd6 {[%emt 0:01:04]} Nxh4 {[%emt 0:05:26]} 27. Bg3 {[%emt 0:01:36]} Nf3+ {[%emt 0:10:02]} 28. Kd1 {[%emt 0:01:56]} Raf8 {[%emt 0:03:11]} 29. Bxg6 {[%emt 0:02:48]} Nh2 {[%emt 0:00:46]} 30. Rh1 {[%emt 0:08:23]} Rxf2 {[%emt 0:05:17]} 31. Bxh2 {[%emt 0:01:16]} Rxb2 {[%emt 0:01:43]} 0-1

[Event "WYCC 2018 G16"]
[Site "Halkidiki"]
[Date "2018.10.21"]
[Round "2"]
[White "Cotun, Mihaela"]
[Black "Nemcova, Karin"]
[Result "1/2-1/2"]
[ECO "B22"]
[WhiteElo "1482"]
[BlackElo "1888"]
[Annotator "NA"]
[PlyCount "105"]
[EventDate "2018.10.20"]
[EventType "swiss"]
[EventCountry "GRE"]
[SourceTitle "playchess.com"]
[Source "ChessBase"]
[SourceQuality "1"]
[TimeControl "40/5400+30:1800+30"]

1. e4 {[%emt 0:00:00]} c5 {[%emt 0:00:00]} 2. c3 {[%emt 0:00:00]} Nf6 {[%emt 0:01:26]} 3. e5 {[%emt 0:00:17]} Nd5 {[%emt 0:00:08]} 4. d4 {[%emt 0:00:26]} cxd4 {[%emt 0:00:20]} 5. cxd4 {[%emt 0:00:06]} e6 {[%emt 0:00:16]} 6. a3 {[%emt 0:01:22] B22: Sicilian: 2 c3} (6. Nc3 Nxc3 7. bxc3 d6 8. f4 Qc7 9. Bd2 b6 10. Nf3 Bb7 11. Bd3 Nc6 12. O-O Be7 13. f5 exf5 14. Bxf5 dxe5 15. Ng5 Bxg5 16. Bxg5 Ne7 17. Bxe7 Qxe7 {½-½ (34) Adhiban,B (2677)-Duda,J (2707) Linares 2017}) 6... d6 {[%emt 0:01:11]} 7. exd6 {[%emt 0:00:40]} Bxd6 {[%emt 0:00:52]} 8. Nf3 {[%emt 0:01:06]} Nd7 {[%emt 0:03:33]} 9. Nc3 {[%emt 0:03:12]} N7f6 $146 {[%emt 0:00:54]} ({Predecessor:} 9... Nxc3 10. bxc3 Qc7 11. c4 b6 12. Bb2 Bb7 13. Bd3 O-O 14. O-O Bxf3 15. Qxf3 Bxh2+ {1-0 (42) Canal Oliveras,J (2236)-Chalmeta Ugas,R (2176) Barbera del Valles 2007}) 10. Bg5 {[%emt 0:02:31]} Bf4 {[%emt 0:12:25]} 11. Nxd5 {[%emt 0:07:25]} Bxg5 {[%emt 0:00:44]} 12. Nxg5 {[%emt 0:00:37]} Qxd5 {[%emt 0:02:28]} 13. Nf3 {[%emt 0:00:14]} Bd7 {[%emt 0:01:10]} 14. Bd3 {[%emt 0:02:28]} O-O {[%emt 0:01:46]} 15. O-O {[%emt 0:02:27]} Bc6 {[%emt 0:05:41]} 16. Re1 {[%emt 0:05:36]} Qh5 {[%emt 0:07:28]} 17. Ne5 {[%emt 0:05:11]} Qxd1 {[%emt 0:00:13]} 18. Raxd1 {[%emt 0:00:13]} Bd5 {[%emt 0:00:39]} 19. Rc1 {[%emt 0:05:02]} Rfc8 {[%emt 0:02:12]} 20. f3 {[%emt 0:10:33]} Kf8 {[%emt 0:06:09]} 21. Bb5 {[%emt 0:11:07]} Ke7 {[%emt 0:05:53]} 22. Kf2 {[%emt 0:12:05]} a6 {[%emt 0:03:49]} 23. Bc4 {[%emt 0:02:35]} Bxc4 {[%emt 0:04:56]} 24. Nxc4 {[%emt 0:00:26]} Nd5 {[%emt 0:00:26]} 25. Ne5 {[%emt 0:02:29]} Rd8 {[%emt 0:15:11]} 26. g3 {[%emt 0:03:20]} Rac8 {[%emt 0:00:27]} 27. Nd3 {[%emt 0:04:31]} Nb6 {[%emt 0:05:50]} 28. Rxc8 {[%emt 0:04:24]} Rxc8 {[%emt 0:00:37]} 29. Nc5 {[%emt 0:01:51]} Rc7 {[%emt 0:00:37]} 30. f4 {[%emt 0:02:00]} Nd7 {[%emt 0:06:34]} 31. Nxd7 {[%emt 0:01:31]} Kxd7 {[%emt 0:00:41]} 32. Re2 {[%emt 0:00:25]} Kd6 {[%emt 0:00:26]} 33. Ke3 {[%emt 0:00:37]} Kd5 {[%emt 0:00:48]} 34. Kd3 {[%emt 0:00:09]} f6 {[%emt 0:00:17]} 35. b3 {[%emt 0:01:44]} Rc1 {[%emt 0:00:49]} 36. a4 {[%emt 0:00:50]} Rd1+ {[%emt 0:00:12]} 37. Kc3 {[%emt 0:02:36]} g6 {[%emt 0:04:02]} 38. Re3 {[%emt 0:01:35]} Rxd4 {[%emt 0:01:33]} (38... b6 $17) 39. Rxe6 {[%emt 0:01:17]} Rxf4 {[%emt 0:00:18]} 40. Re7 {[%emt 0:00:00]} Rf3+ {[%emt 0:00:00]} 41. Kb4 {[%emt 0:02:30]} h5 {[%emt 0:17:39]} 42. Rxb7 {[%emt 0:11:24]} Kc6 {[%emt 0:02:45]} 43. Rg7 {[%emt 0:02:35]} g5 {[%emt 0:00:15]} 44. Rh7 {[%emt 0:00:39]} h4 {[%emt 0:02:28]} 45. Rh6 {[%emt 0:02:01]} hxg3 {[%emt 0:01:48]} 46. hxg3 {[%emt 0:00:30]} Rf5 {[%emt 0:05:48]} 47. Rh1 {[%emt 0:04:05]} a5+ {[%emt 0:00:57]} 48. Kc4 $11 {[%emt 0:01:27]} Rc5+ {[%emt 0:02:22]} 49. Kd4 {[%emt 0:00:33]} Rd5+ {[%emt 0:00:05]} 50. Kc4 {[%emt 0:00:08]} f5 {[%emt 0:02:29]} 51. Rh6+ {[%emt 0:04:39]} Rd6 {[%emt 0:00:06]} 52. Rh5 {[%emt 0:00:56]} Rg6 {[%emt 0:00:35]} 53. Kd4 {Kd5+} 1/2-1/2

[Event "WYCC 2018 G16"]
[Site "Halkidiki"]
[Date "2018.10.21"]
[Round "2"]
[White "Quintana Chanduvi, Daniela Sofia"]
[Black "Moerwald, Magdalena"]
[Result "0-1"]
[ECO "B13"]
[WhiteElo "1400"]
[BlackElo "1875"]
[Annotator "NA"]
[PlyCount "70"]
[EventDate "2018.10.20"]
[EventType "swiss"]
[EventCountry "GRE"]
[SourceTitle "playchess.com"]
[Source "ChessBase"]
[SourceQuality "1"]
[TimeControl "40/5400+30:1800+30"]

1. e4 {[%emt 0:00:00]} c6 {[%emt 0:00:00]} 2. c4 {[%emt 0:00:00]} d5 {[%emt 0:01:05]} 3. exd5 {[%emt 0:00:00]} cxd5 {[%emt 0:00:14]} 4. d4 {[%emt 0:00:00]} Nf6 {[%emt 0:01:12]} 5. Nc3 {[%emt 0:00:09]} Nc6 {[%emt 0:00:59]} 6. Bf4 {[%emt 0:00:59]} Be6 {[%emt 0:06:22]} 7. c5 {[%emt 0:16:01]} g6 {[%emt 0:02:23]} 8. Be2 {[%emt 0:09:10]} Bg7 {[%emt 0:02:35]} 9. Bf3 {[%emt 0:01:18]} O-O {[%emt 0:01:03]} 10. a3 {[%emt 0:00:38]} b6 {[%emt 0:01:30]} 11. b4 {[%emt 0:03:18]} bxc5 $19 {[%emt 0:04:32]} 12. bxc5 {[%emt 0:00:30]} Qa5 {[%emt 0:03:14]} 13. Nge2 {[%emt 0:14:01]} h6 {[%emt 0:14:15]} 14. O-O {[%emt 0:02:15]} g5 {[%emt 0:00:44]} 15. Be5 {[%emt 0:04:46]} g4 {[%emt 0:03:07]} 16. Bxf6 {[%emt 0:00:27]} gxf3 {[%emt 0:00:23]} 17. Bxg7 {[%emt 0:00:57]} fxe2 {[%emt 0:00:26]} 18. Nxe2 {[%emt 0:01:11]} Kxg7 {[%emt 0:00:20]} 19. Nf4 {[%emt 0:00:28]} Bf5 {[%emt 0:04:47]} 20. Nxd5 {[%emt 0:06:34]} Qd8 {[%emt 0:01:25]} 21. Ne3 {[%emt 0:01:21]} Bg6 {[%emt 0:02:29]} 22. d5 {[%emt 0:08:03]} Nb8 {[%emt 0:04:04]} 23. f4 {[%emt 0:13:17]} Qc8 {[%emt 0:03:48]} 24. f5 {[%emt 0:02:01]} Qxc5 {[%emt 0:01:46]} 25. Qe2 {[%emt 0:04:04]} Bh7 {[%emt 0:01:21]} 26. Kh1 {[%emt 0:02:01]} Rg8 {[%emt 0:03:36]} 27. Ng4 {[%emt 0:06:30]} Nd7 {[%emt 0:04:26]} 28. Qd2 {[%emt 0:00:07]} Kh8 {[%emt 0:04:24]} 29. Nxh6 {[%emt 0:02:07]} Rg7 {[%emt 0:01:10]} 30. Qb2 {[%emt 0:00:42]} Nf6 {[%emt 0:02:06]} 31. Rae1 {[%emt 0:01:09]} Rd8 {[%emt 0:02:13]} 32. Qb7 {[%emt 0:01:08]} Qxd5 {[%emt 0:00:28]} 33. Qxd5 {[%emt 0:00:09]} Nxd5 {[%emt 0:00:42]} 34. Rd1 {[%emt 0:00:55]} Rd6 {[%emt 0:00:22]} 35. Rc1 {[%emt 0:00:31]} Rxh6 {[%emt 0:00:16]} 0-1

[Event "WYCC 2018 G16"]
[Site "Halkidiki"]
[Date "2018.10.21"]
[Round "2"]
[White "Michielsen, Lies"]
[Black "Nayberg, Simona"]
[Result "0-1"]
[ECO "B03"]
[WhiteElo "1398"]
[BlackElo "1857"]
[Annotator "NA"]
[PlyCount "64"]
[EventDate "2018.10.20"]
[EventType "swiss"]
[EventCountry "GRE"]
[SourceTitle "playchess.com"]
[Source "ChessBase"]
[SourceQuality "1"]
[TimeControl "40/5400+30:1800+30"]

1. e4 {[%emt 0:00:00]} Nf6 {[%emt 0:00:00]} 2. e5 {[%emt 0:00:00]} Nd5 {[%emt 0:00:00]} 3. d4 {[%emt 0:00:17]} d6 {[%emt 0:00:04]} 4. c4 {[%emt 0:01:29]} Nb6 {[%emt 0:00:16]} 5. exd6 {[%emt 0:00:21]} exd6 {[%emt 0:00:07]} 6. Nc3 {[%emt 0:00:59]} Be7 {[%emt 0:00:25]} 7. Bd3 {[%emt 0:01:33]} O-O {[%emt 0:00:22]} 8. Nge2 {[%emt 0:00:17]} Nc6 {[%emt 0:00:58]} 9. O-O {[%emt 0:00:48]} Bf6 {[%emt 0:00:37]} 10. Re1 {[%emt 0:06:30]} Re8 {[%emt 0:05:03]} 11. Be3 {[%emt 0:11:32]} Nb4 {[%emt 0:06:53]} 12. Ne4 {[%emt 0:13:53]} Bf5 {[%emt 0:15:27]} 13. Nxf6+ {[%emt 0:12:44]} Qxf6 {[%emt 0:00:40]} 14. Nf4 {[%emt 0:06:15]} Nxd3 {[%emt 0:06:33]} 15. Nxd3 {[%emt 0:03:27]} Nxc4 {[%emt 0:00:10]} 16. Qb3 {[%emt 0:05:16]} d5 {[%emt 0:20:06]} 17. Nf4 {[%emt 0:04:19]} c6 {[%emt 0:01:14]} 18. Qc3 {[%emt 0:12:25]} Rad8 {[%emt 0:07:58]} 19. b3 {[%emt 0:03:09]} Nd6 {[%emt 0:01:22]} 20. Qb4 {[%emt 0:02:26]} Bc8 {[%emt 0:09:04]} 21. Rac1 {[%emt 0:03:18]} Nf5 {[%emt 0:06:55]} 22. Nd3 {[%emt 0:05:53]} Qh4 {[%emt 0:08:51]} 23. Ne5 {[%emt 0:01:35]} Rxe5 {[%emt 0:03:58]} 24. g3 {[%emt 0:00:36]} Qg4 {[%emt 0:02:01]} 25. f3 {[%emt 0:00:59]} Qxf3 {[%emt 0:00:43]} 26. dxe5 {[%emt 0:00:11]} Nxe3 {[%emt 0:00:04]} 27. Qd2 {[%emt 0:00:21]} d4 {[%emt 0:00:21]} 28. Re2 {[%emt 0:01:04]} Be6 {[%emt 0:00:45]} 29. Rf2 {[%emt 0:00:35]} Qe4 {[%emt 0:00:51]} 30. Qa5 {[%emt 0:01:55]} b6 {[%emt 0:00:55]} 31. Qd2 {[%emt 0:00:39]} Bd5 {[%emt 0:00:23]} 32. Re1 {[%emt 0:00:28]} Qh1# 0-1

[Event "WYCC 2018 G16"]
[Site "Halkidiki"]
[Date "2018.10.21"]
[Round "3"]
[White "Maltsevskaya, Aleksandra"]
[Black "Shanya Mishra"]
[Result "1-0"]
[ECO "B90"]
[WhiteElo "2290"]
[BlackElo "1924"]
[Annotator "NA"]
[PlyCount "91"]
[EventDate "2018.10.20"]
[EventType "swiss"]
[EventCountry "GRE"]
[SourceTitle "playchess.com"]
[Source "ChessBase"]
[SourceQuality "1"]
[TimeControl "40/5400+30:1800+30"]

1. e4 {[%emt 0:00:00]} c5 {[%emt 0:00:00]} 2. Nf3 {[%emt 0:00:00]} d6 {[%emt 0:00:28]} 3. d4 {[%emt 0:00:36]} cxd4 {[%emt 0:00:51]} 4. Nxd4 {[%emt 0:00:08]} Nf6 {[%emt 0:00:38]} 5. Nc3 {[%emt 0:00:15]} a6 {[%emt 0:00:58]} 6. h3 {[%emt 0:00:39]} e5 {[%emt 0:03:03]} 7. Nde2 {[%emt 0:03:03]} h5 {[%emt 0:01:44]} 8. Bg5 {[%emt 0:00:30]} Be6 {[%emt 0:01:28]} 9. g3 {[%emt 0:00:52]} Nbd7 {[%emt 0:01:59]} 10. a4 {[%emt 0:00:23]} Be7 {[%emt 0:03:19]} 11. Bg2 {[%emt 0:00:08]} Rc8 {[%emt 0:15:49]} 12. b3 {[%emt 0:00:59]} Nf8 {[%emt 0:00:18]} 13. O-O {[%emt 0:08:38]} N8h7 {[%emt 0:03:11]} 14. Be3 {[%emt 0:01:53]} g5 $14 {[%emt 0:01:49]} 15. Nd5 {[%emt 0:04:58]} Nxd5 {[%emt 0:04:36]} 16. exd5 {[%emt 0:00:31]} Bf5 {[%emt 0:00:04]} 17. c4 {[%emt 0:00:52]} Bg6 {[%emt 0:07:02]} 18. f4 {[%emt 0:07:36]} f5 {[%emt 0:05:49]} 19. c5 {[%emt 0:08:37]} gxf4 {[%emt 0:08:44]} 20. gxf4 {[%emt 0:00:24]} e4 {[%emt 0:00:06]} 21. c6 {[%emt 0:18:24]} bxc6 {[%emt 0:03:47]} 22. dxc6 {[%emt 0:01:46]} Rxc6 {[%emt 0:00:30]} 23. Qd5 {[%emt 0:11:32]} Rc8 {[%emt 0:02:24]} 24. Rac1 {[%emt 0:00:42]} Nf6 {[%emt 0:01:54]} 25. Qe6 {[%emt 0:00:09]} Ra8 {[%emt 0:00:59]} 26. Nd4 {[%emt 0:05:06]} Qd7 {[%emt 0:01:43]} 27. Rfd1 {[%emt 0:00:12]} Qxe6 {[%emt 0:06:45]} 28. Nxe6 {[%emt 0:00:06]} Kd7 {[%emt 0:00:33]} 29. Nc5+ {[%emt 0:13:43]} Ke8 {[%emt 0:00:16]} 30. Ne6 {[%emt 0:05:21]} Kd7 {[%emt 0:00:15]} 31. Nc5+ {[%emt 0:00:05]} Ke8 {[%emt 0:00:04]} 32. Nxa6 {[%emt 0:00:42]} Rxa6 {[%emt 0:00:05]} 33. Rc8+ {[%emt 0:00:04]} Bd8 {[%emt 0:02:35]} 34. Bf1 {[%emt 0:00:06]} Ra5 {[%emt 0:00:06]} 35. Rxd6 {[%emt 0:05:26]} Ke7 {[%emt 0:02:18]} 36. Rxf6 {[%emt 0:00:46]} Rg8 {[%emt 0:02:41]} 37. Rxd8 {[%emt 0:00:44]} Kxd8 {[%emt 0:01:45]} 38. Kf2 {[%emt 0:00:43]} Ra8 {[%emt 0:01:48]} 39. Bc4 {[%emt 0:00:48]} Rg7 {[%emt 0:07:16]} 40. Bd4 {[%emt 0:00:00]} Be8 {[%emt 0:00:00]} 41. a5 {[%emt 0:07:38]} h4 {[%emt 0:09:54]} 42. a6 {[%emt 0:02:46]} Rg6 {[%emt 0:01:22]} 43. Rxg6 {[%emt 0:00:34]} Bxg6 {[%emt 0:00:04]} 44. a7 {[%emt 0:00:05]} Kc7 {[%emt 0:00:48]} 45. Bd5 {[%emt 0:00:06]} e3+ {[%emt 0:00:18]} 46. Bxe3 {[%emt 0:00:15]} 1-0